fUSD/lending_fUSD_20250510
["ID","MTS","AMOUNT","RATE_DAILY","PERIOD"]
[360540328,1746868232822,-500.0,0.00019998,2]
[360540329,1746868232833,-500.0,0.00019998,2]
[360540330,1746868232843,-500.0,0.00019998,2]
[360540331,1746868233059,-500.0,0.00019998,2]
[360540332,1746868233071,-500.0,0.00019998,2]
[360540333,1746868233082,-639.47413131,0.00019998,2]
[360540334,1746868233093,-500.0,0.00019998,2]
[360540335,1746868233104,-500.0,0.00019998,2]
[360540336,1746868233114,-500.0,0.00019998,2]
[360540337,1746868233124,-500.0,0.00019998,2]
[360540338,1746868233135,-500.0,0.00019998,2]
[360540339,1746868233145,-500.0,0.00019998,2]
[360540340,1746868233155,-500.0,0.00019998,2]
[360540341,1746868233166,-500.0,0.00019998,2]
[360540342,1746868233175,-528.81839712,0.00019998,2]
[360540343,1746868233185,-500.0,0.00019998,2]
[360540344,1746868233194,-357.83691444,0.00019999,2]
[360540345,1746868233205,-310.37,0.00019999,2]
[360540346,1746868233216,-400.0,0.00019999,2]
[360540347,1746868233226,-400.0,0.00019999,2]
[360540348,1746868233236,-400.0,0.00019999,2]
[360540349,1746868233256,-511.32347803,0.00019999,2]
[360540350,1746868233269,-3014.0,0.00019999,2]
[360540351,1746868233280,-400.0,0.00019999,2]
[360540352,1746868233291,-400.0,0.00019999,2]
[360540353,1746868233301,-400.0,0.00019999,2]
[360540354,1746868233312,-519.12,0.00019999,2]
[360540355,1746868233323,-355.26755161,0.00019999,2]
[360540356,1746868233333,-400.0,0.00019999,2]
[360540357,1746868233344,-189.24308555,0.00019999,2]
[360540358,1746868233354,-400.0,0.00019999,2]
[360540359,1746868233365,-400.0,0.00019999,2]
[360540360,1746868233376,-150.0,0.00019999,2]
[360540361,1746868233386,-150.0,0.00019999,2]
[360540362,1746868233400,-150.0,0.00019999,2]
[360540363,1746868233411,-150.0,0.00019999,2]
[360540364,1746868233421,-150.0,0.00019999,2]
[360540365,1746868233432,-150.0,0.00019999,2]
[360540366,1746868233443,-150.0,0.00019999,2]
[360540367,1746868233453,-150.0,0.00019999,2]
[360540368,1746868233465,-150.0,0.00019999,2]
[360540369,1746868233475,-150.0,0.00019999,2]
[360540370,1746868233486,-158.74721141,0.00019999,2]
[360540371,1746868233496,-500.0,0.00019999,2]
[360540372,1746868233507,-478.00157871,0.00019999,2]
[360540373,1746868233517,-119084.31079014,0.0002,2]
[360540374,1746868233527,-99134.95452446,0.0002,2]
[360540375,1746868233741,-2196.72633254,0.0002,2]
[360540376,1746868233755,-440.0,0.0002,2]
[360540377,1746868233767,-636.10140926,0.0002,2]
[360540378,1746868237319,-4417.31673857,0.0002,2]
[360540379,1746868237372,-4168.56843775,0.0002,2]
[360540380,1746868237387,-11232.108,0.0002,2]
[360540403,1746868238221,-1140.0,0.00019904,2]
[360540404,1746868238233,-786.09196155,0.0002,2]
[360540405,1746868238276,-431.85465765,0.0002,2]
[360540406,1746868238381,-47982.29158587,0.0002,2]
[360540407,1746868238397,-539.83604071,0.0002,2]
[360540408,1746868238435,-3586.85908103,0.0002,2]
[360540409,1746868238541,-11987.4360524,0.0002,2]
[360540413,1746868240370,-713.56034949,0.00019996,2]
[360540414,1746868240383,-165.64354501,0.00019996,2]
[360540415,1746868240396,-35657.099151,0.0002,2]
[360540416,1746868240407,-20955.00012026,0.0002,2]
[360540417,1746868240476,-998.814642,0.0002,2]
[360540418,1746868240488,-11284.75043097,0.0002,2]
[360540419,1746868240530,-1105.10798673,0.0002,2]
[360540420,1746868240542,-2235.98359056,0.0002,2]
[360540421,1746868240742,-1007.5722947,0.0002,2]
[360540441,1746868243328,-424.65892606,0.000199,2]
[360540443,1746868243338,-849.34300474,0.0002,2]
[360540446,1746868243381,-708.79322723,0.0002,2]
[360540447,1746868243488,-550.41,0.0002,2]
[360540448,1746868243500,-17618.95223,0.0002,2]
[360540449,1746868243512,-89335.91506763,0.0002,2]
[360540450,1746868243523,-707.675,0.0002,2]
[360540451,1746868243594,-529.06307541,0.0002,2]
[360540478,1746868246521,-4756.8,0.0002,2]
[360540479,1746868246533,-995.01,0.0002,2]
[360540480,1746868246573,-268.987887,0.0002,2]
[360540481,1746868246626,-2672.34995463,0.0002,2]
[360540482,1746868246680,-3434.12887577,0.0002,2]
[360540483,1746868246691,-10350.0,0.0002,2]
[360540488,1746868363888,2027.98,0.0001907,2]
[360540489,1746868393295,4882.0,0.0003,120]
[360540490,1746868454354,250.0,0.00017,2]
[360540491,1746868455419,300.0,0.00019,2]
[360540492,1746868493413,476.08,0.00017104,2]
[360540493,1746868493602,476.08,0.00019368,2]
[360540494,1746868530462,1400.0,0.00030137,120]
[360540495,1746868596249,3000.0,0.0003,30]
[360540496,1746868634844,2000.0,0.0003,30]
[360540497,1746868972991,1000.0,0.00018969,2]
[360540498,1746868996693,-188.764123,0.00019639,2]
[360540499,1746869120386,10047.99358382,9e-05,2]
[360540500,1746869149538,170.66,0.00018934,2]
[360540501,1746869160707,438.63,0.00018934,2]
[360540502,1746869270738,243.69766951,0.00029,30]
[360540503,1746869277638,5443.34358519,0.0001,2]
[360540504,1746869295976,5963.40244167,0.0001439,2]
[360540506,1746869310865,888.0,0.0003,30]
[360540507,1746869336185,578.78641426,0.00028493,30]
[360540508,1746869336355,578.78641426,0.00028603,30]
[360540509,1746869336475,578.78641426,0.0002874,30]
[360540510,1746869336619,578.78641426,0.00028849,30]
[360540511,1746869336764,578.78641426,0.00028959,30]
[360540512,1746869336882,578.78641426,0.00029068,30]
[360540513,1746869337035,578.78641426,0.00029178,30]
[360540514,1746869337175,578.78641426,0.00029315,30]
[360540515,1746869337326,578.78641426,0.00029425,30]
[360540516,1746869337465,578.78641426,0.00029534,30]
[360540517,1746869337615,578.78641426,0.00029644,30]
[360540518,1746869337743,578.78641426,0.00029753,30]
[360540538,1746869411711,4000.0,0.00018921,2]
[360540539,1746869413032,-158.5213762,0.00019554,2]
[360540546,1746869431557,-373.12280385,0.00019639,2]
[360540547,1746869431568,-1000.0,0.00019654,2]
[360540548,1746869431578,-442.24212345,0.00019656,2]
[360540549,1746869431775,-557.75787655,0.00019656,2]
[360540550,1746869431788,-1000.0,0.00019714,2]
[360540551,1746869431800,-1000.0,0.00019727,2]
[360540552,1746869431809,-1000.0,0.00019728,2]
[360540553,1746869431820,-151.0,0.00019732,2]
[360540554,1746869431830,-1000.0,0.00019741,2]
[360540555,1746869431841,-1000.0,0.00019749,2]
[360540556,1746869431853,-1.21954725,0.00019773,2]
[360540557,1746869431866,-520.76112303,0.00019773,2]
[360540558,1746869431886,-678.01932972,0.00019773,2]
[360540559,1746869431896,-1000.0,0.00019775,2]
[360540560,1746869431906,-300.0,0.00019793,2]
[360540561,1746869431916,-241.98064628,0.00019794,2]
[360540562,1746869431929,-58.01935372,0.00019794,2]
[360540564,1746869431939,-328.96064628,0.00019799,2]
[360540566,1746869431951,-447.14101808,0.00019799,2]
[360540660,1746869437555,-223.89833564,0.00019799,2]
[360540661,1746869437566,-326.12856257,0.00019799,2]
[360540662,1746869437576,-1000.0,0.00019847,2]
[360540663,1746869437586,-1000.0,0.00019876,2]
[360540664,1746869437597,-9735.38,0.00019876,2]
[360540665,1746869437608,-1394.1,0.00019876,2]
[360540666,1746869437619,-4886.87,0.00019876,2]
[360540667,1746869437631,-207.4,0.00019888,2]
[360540668,1746869437642,-1159.6947,0.000199,2]
[360540669,1746869437652,-449.43149235,0.000199,2]
[360540670,1746869437664,-550.55850765,0.000199,2]
[360540671,1746869437675,-390.23,0.000199,2]
[360540672,1746869437687,-1070.83,0.000199,2]
[360540673,1746869437698,-1562.7067,0.000199,2]
[360540674,1746869437709,-150.99,0.000199,2]
[360540675,1746869437718,-295.7946156,0.000199,2]
[360540676,1746869437729,-11177.16507345,0.000199,2]
[360540677,1746869437738,-172.20566954,0.000199,2]
[360540678,1746869437748,-374.83743612,0.000199,2]
[360540679,1746869437759,-205.90083456,0.000199,2]
[360540680,1746869437773,-5942.37730423,0.000199,2]
[360540681,1746869437783,-3573.76873495,0.000199,2]
[360540682,1746869437793,-305.946,0.00019937,2]
[360540683,1746869437803,-5937.0,0.00019955,2]
[360540684,1746869437813,-500.0,0.00019973,2]
[360540685,1746869437823,-500.0,0.00019973,2]
[360540686,1746869437833,-500.0,0.00019973,2]
[360540687,1746869437843,-6052.07581269,0.00019996,2]
[360540688,1746869437855,-330.78993013,0.00019996,2]
[360540689,1746869437872,-497.32002807,0.00019996,2]
[360540727,1746869439555,-166.02,0.00019751,2]
[360540728,1746869439566,-270.72,0.00019996,2]
[360540729,1746869439609,-1059.36,0.00019996,2]
[360540730,1746869439793,-7.08200101,0.00019996,2]
[360540731,1746869439806,-497.9702656,0.00019996,2]
[360540732,1746869439939,-6122.34479264,0.00019996,2]
[360540733,1746869439949,-3307.32620771,0.00019996,2]
[360540734,1746869439961,-614.704,0.00019996,2]
[360540735,1746869439997,-4043.45538109,0.00019996,2]
[360540736,1746869440007,-159.7434764,0.00019996,2]
[360540737,1746869440016,-441.54015129,0.00019999,2]
[360540738,1746869440026,-501.43580125,0.00019999,2]
[360540739,1746869440037,-538.0,0.00019999,2]
[360540740,1746869440047,-423.63979273,0.00019999,2]
[360540741,1746869440057,-400.5705719,0.00019999,2]
[360540742,1746869440067,-369.72009495,0.00019999,2]
[360540743,1746869440076,-339.53027949,0.00019999,2]
[360540744,1746869440086,-364.66726539,0.00019999,2]
[360540745,1746869440095,-400.0,0.00019999,2]
[360540746,1746869440105,-400.0,0.00019999,2]
[360540748,1746869440118,-450.0,0.00019999,2]
[360540749,1746869440129,-400.0,0.00019999,2]
[360540750,1746869440140,-206.24169963,0.00019999,2]
[360540751,1746869440150,-400.0,0.00019999,2]
[360540752,1746869440160,-482.34071847,0.00019999,2]
[360540753,1746869440170,-290.19630198,0.00019999,2]
[360540754,1746869440180,-478.55023677,0.00019999,2]
[360540755,1746869440189,-450.0,0.00019999,2]
[360540756,1746869440200,-450.0,0.00019999,2]
[360540757,1746869440211,-182.78999546,0.00019999,2]
[360540758,1746869440222,-459.8329904,0.00019999,2]
[360540759,1746869440232,-400.0,0.00019999,2]
[360540760,1746869440243,-408.18746569,0.00019999,2]
[360540761,1746869440253,-400.0,0.00019999,2]
[360540762,1746869440269,-400.0,0.00019999,2]
[360540763,1746869440281,-400.0,0.00019999,2]
[360540764,1746869440292,-400.0,0.00019999,2]
[360540765,1746869440302,-400.0,0.00019999,2]
[360540766,1746869440313,-400.0,0.00019999,2]
[360540767,1746869440323,-400.0,0.00019999,2]
[360540768,1746869440333,-400.0,0.00019999,2]
[360540769,1746869440343,-400.0,0.00019999,2]
[360540770,1746869440353,-400.0,0.00019999,2]
[360540771,1746869440363,-400.0,0.00019999,2]
[360540772,1746869440375,-400.0,0.00019999,2]
[360540773,1746869440393,-400.0,0.00019999,2]
[360540774,1746869440403,-400.0,0.00019999,2]
[360540775,1746869440412,-400.0,0.00019999,2]
[360540776,1746869440422,-400.0,0.00019999,2]
[360540777,1746869440432,-400.0,0.00019999,2]
[360540778,1746869440442,-400.0,0.00019999,2]
[360540779,1746869440455,-400.0,0.00019999,2]
[360540780,1746869440466,-306.16,0.00019999,2]
[360540781,1746869440476,-400.0,0.00019999,2]
[360540782,1746869440486,-400.0,0.00019999,2]
[360540783,1746869440496,-400.0,0.00019999,2]
[360540784,1746869440506,-400.0,0.00019999,2]
[360540785,1746869440516,-400.0,0.00019999,2]
[360540786,1746869440526,-400.0,0.00019999,2]
[360540787,1746869440536,-400.0,0.00019999,2]
[360540788,1746869440546,-400.0,0.00019999,2]
[360540789,1746869440556,-252.50103385,0.00019999,2]
[360540790,1746869440566,-400.0,0.00019999,2]
[360540791,1746869440577,-400.0,0.00019999,2]
[360540792,1746869440589,-288.39674326,0.00019999,2]
[360540793,1746869440602,-111.60325674,0.00019999,2]
[360540794,1746869440612,-400.0,0.00019999,2]
[360540795,1746869440622,-400.0,0.00019999,2]
[360540796,1746869440631,-86.16883139,0.00019999,2]
[360540799,1746869442598,-157.55048229,0.000199,2]
[360540800,1746869442608,-257.12952972,0.00019999,2]
[360540801,1746869442621,-56.70163889,0.00019999,2]
[360540802,1746869442631,-400.0,0.00019999,2]
[360540803,1746869442643,-400.0,0.00019999,2]
[360540804,1746869442653,-193.63609361,0.00019999,2]
[360540805,1746869442666,-206.36390639,0.00019999,2]
[360540806,1746869442676,-400.0,0.00019999,2]
[360540807,1746869442686,-400.0,0.00019999,2]
[360540808,1746869442696,-400.0,0.00019999,2]
[360540809,1746869442705,-160.80914123,0.00019999,2]
[360540810,1746869442718,-239.19085877,0.00019999,2]
[360540811,1746869442728,-400.0,0.00019999,2]
[360540812,1746869442738,-400.0,0.00019999,2]
[360540813,1746869442748,-400.0,0.00019999,2]
[360540814,1746869442759,-400.0,0.00019999,2]
[360540815,1746869442774,-400.0,0.00019999,2]
[360540816,1746869442784,-400.0,0.00019999,2]
[360540817,1746869442794,-400.0,0.00019999,2]
[360540818,1746869442804,-182.21574663,0.00019999,2]
[360540819,1746869442822,-217.78425337,0.00019999,2]
[360540820,1746869442832,-400.0,0.00019999,2]
[360540821,1746869442843,-400.0,0.00019999,2]
[360540822,1746869442852,-400.0,0.00019999,2]
[360540823,1746869442862,-354.96050951,0.00019999,2]
[360540824,1746869442871,-400.0,0.00019999,2]
[360540825,1746869442881,-269.18991573,0.00019999,2]
[360540826,1746869442908,-130.81008427,0.00019999,2]
[360540827,1746869442918,-400.0,0.00019999,2]
[360540828,1746869442927,-400.0,0.00019999,2]
[360540829,1746869442937,-400.0,0.00019999,2]
[360540830,1746869442946,-400.0,0.00019999,2]
[360540831,1746869442956,-400.0,0.00019999,2]
[360540832,1746869442965,-400.0,0.00019999,2]
[360540833,1746869442975,-400.0,0.00019999,2]
[360540834,1746869442984,-400.0,0.00019999,2]
[360540835,1746869442994,-400.0,0.00019999,2]
[360540837,1746869443003,-165.22646177,0.00019999,2]
[360540839,1746869443013,-400.0,0.00019999,2]
[360540841,1746869443023,-400.0,0.00019999,2]
[360540843,1746869443032,-400.0,0.00019999,2]
[360540845,1746869443042,-150.0,0.00019999,2]
[360540847,1746869443051,-400.0,0.00019999,2]
[360540849,1746869443061,-400.0,0.00019999,2]
[360540851,1746869443070,-400.0,0.00019999,2]
[360540853,1746869443079,-400.0,0.00019999,2]
[360540855,1746869443089,-150.0,0.00019999,2]
[360540857,1746869443098,-400.0,0.00019999,2]
[360540859,1746869443107,-400.0,0.00019999,2]
[360540861,1746869443117,-154.49880561,0.00019999,2]
[360540862,1746869443126,-150.0,0.00019999,2]
[360540863,1746869443136,-150.0,0.00019999,2]
[360540865,1746869443147,-150.0,0.00019999,2]
[360540867,1746869443156,-150.0,0.00019999,2]
[360540869,1746869443166,-400.0,0.00019999,2]
[360540871,1746869443175,-400.0,0.00019999,2]
[360540872,1746869443185,-400.0,0.00019999,2]
[360540874,1746869443195,-213.98954051,0.00019999,2]
[360540876,1746869443205,-391.47510784,0.00019999,2]
[360540879,1746869443217,-8.52489216,0.00019999,2]
[360540881,1746869443227,-319.87015464,0.00019999,2]
[360541044,1746869445482,-80.12984536,0.00019999,2]
[360541046,1746869445493,-549.65904502,0.00019999,2]
[360541048,1746869445503,-450.0,0.00019999,2]
[360541050,1746869445513,-267.91827482,0.0002,2]
[360541051,1746869445523,-12538.60717095,0.0002,2]
[360541053,1746869445539,-1027.9,0.0002,2]
[360541055,1746869445550,-563.78667764,0.0002,2]
[360541059,1746869445703,-2056.07506595,0.0002,2]
[360541060,1746869445813,-660.42724984,0.0002,2]
[360541061,1746869445826,-599.38775637,0.0002,2]
[360541062,1746869445838,-613.30967648,0.0002,2]
[360541063,1746869445872,-4767.05951172,0.0002,2]
[360541064,1746869521596,1000.0,0.0003,30]
[360541065,1746869538147,454.27,0.00017243,2]
[360541066,1746869539162,-157.70735956,0.00019507,2]
[360541067,1746869552263,-296.56264044,0.00019507,2]
[360541068,1746869563248,1000.0,0.00030137,120]
[360541069,1746869590165,500.0,0.00019351,2]
[360541070,1746869595072,500.0,0.00019351,2]
[360541072,1746869809626,875.40755421,0.000194,2]
[360541075,1746869971121,213.0,0.0003,30]
[360541076,1746870039295,150.0,0.0003013,120]
[360541077,1746870055842,1000.0,0.00013699,2]
[360541078,1746870066990,776.60042709,0.00019465,2]
[360541079,1746870093529,2608.14,0.00019087,2]
[360541080,1746870108574,150.0,0.0002945,44]
[360541081,1746870216765,219.31,0.00019066,2]
[360541082,1746870254710,-2506.01441521,0.000197,2]
[360541083,1746870254733,-831.754986,0.00019746,2]
[360541084,1746870254756,-154.34527,0.00019746,2]
[360541085,1746870254780,-164.166909,0.00019746,2]
[360541086,1746870254803,-831.754986,0.00019896,2]
[360541087,1746870254826,-154.34527,0.00019896,2]
[360541088,1746870254850,-1200.0,0.00019898,2]
[360541089,1746870254872,-165.0,0.00019898,2]
[360541090,1746870254895,-300.0,0.00019899,2]
[360541091,1746870254918,-236.6356925,0.000199,2]
[360541092,1746870254943,-1594.35049608,0.000199,2]
[360541093,1746870254966,-755.6417743,0.000199,2]
[360541094,1746870254989,-55375.30754351,0.00019965,2]
[360541095,1746870255011,-500.0,0.00019973,2]
[360541096,1746870255033,-500.0,0.00019973,2]
[360541097,1746870255057,-500.0,0.00019973,2]
[360541098,1746870255078,-500.0,0.00019973,2]
[360541099,1746870255108,-500.0,0.00019973,2]
[360541100,1746870255133,-207.4,0.00019988,2]
[360541101,1746870255156,-275.8050513,0.00019996,2]
[360541102,1746870255181,-394.145,0.00019996,2]
[360541103,1746870255203,-798.717382,0.00019996,2]
[360541104,1746870255227,-3605.7553967,0.00019996,2]
[360541105,1746870255249,-2353.4002799,0.00019996,2]
[360541106,1746870255272,-400.0,0.00019999,2]
[360541107,1746870255295,-400.0,0.00019999,2]
[360541108,1746870255318,-400.0,0.00019999,2]
[360541109,1746870255355,-361.98,0.00019999,2]
[360541110,1746870255381,-400.0,0.00019999,2]
[360541111,1746870255405,-400.0,0.00019999,2]
[360541112,1746870255428,-500.0,0.00019999,2]
[360541113,1746870255452,-500.0,0.00019999,2]
[360541114,1746870255475,-277.00701529,0.00019999,2]
[360541115,1746870255499,-400.0,0.00019999,2]
[360541116,1746870255523,-400.0,0.00019999,2]
[360541117,1746870255545,-1219.58,0.00019999,2]
[360541118,1746870255568,-1219.58,0.00019999,2]
[360541119,1746870255597,-1219.58,0.00019999,2]
[360541120,1746870255620,-1219.58,0.00019999,2]
[360541121,1746870255643,-1219.58,0.00019999,2]
[360541122,1746870255672,-1219.58,0.00019999,2]
[360541123,1746870255695,-1219.58,0.00019999,2]
[360541124,1746870255719,-1219.58,0.00019999,2]
[360541125,1746870255743,-1219.58,0.00019999,2]
[360541126,1746870255767,-1219.58,0.00019999,2]
[360541127,1746870255790,-1219.58,0.00019999,2]
[360541128,1746870255813,-1219.58,0.00019999,2]
[360541129,1746870255837,-1219.58,0.00019999,2]
[360541130,1746870255865,-1219.58,0.00019999,2]
[360541131,1746870255888,-1219.58,0.00019999,2]
[360541132,1746870255911,-1219.58,0.00019999,2]
[360541133,1746870255934,-1219.58,0.00019999,2]
[360541134,1746870255958,-1219.58,0.00019999,2]
[360541135,1746870255981,-1219.58,0.00019999,2]
[360541136,1746870256004,-1219.58,0.00019999,2]
[360541137,1746870256028,-1219.58,0.00019999,2]
[360541138,1746870256054,-1219.58,0.00019999,2]
[360541139,1746870256078,-1219.58,0.00019999,2]
[360541140,1746870256105,-1219.64388109,0.00019999,2]
[360541141,1746870256130,-305.33595493,0.00019999,2]
[360541142,1746870256155,-400.0,0.00019999,2]
[360541143,1746870256181,-400.0,0.00019999,2]
[360541144,1746870256209,-359.29,0.00019999,2]
[360541145,1746870256233,-450.0,0.00019999,2]
[360541146,1746870256257,-400.0,0.00019999,2]
[360541147,1746870256281,-400.0,0.00019999,2]
[360541148,1746870256304,-337.89,0.00019999,2]
[360541149,1746870256326,-499.807721,0.00019999,2]
[360541150,1746870256352,-450.0,0.00019999,2]
[360541151,1746870256376,-400.0,0.00019999,2]
[360541152,1746870256398,-450.0,0.00019999,2]
[360541153,1746870256421,-450.0,0.00019999,2]
[360541154,1746870256444,-450.0,0.00019999,2]
[360541155,1746870256469,-408.26603042,0.00019999,2]
[360541156,1746870256492,-465.81873196,0.00019999,2]
[360541157,1746870256516,-462.8744959,0.00019999,2]
[360541158,1746870256540,-293.41,0.00019999,2]
[360541159,1746870256564,-500.0,0.00019999,2]
[360541160,1746870256587,-500.0,0.00019999,2]
[360541161,1746870256613,-171.07742832,0.00019999,2]
[360541162,1746870256655,-500.0,0.00019999,2]
[360541163,1746870256681,-500.0,0.00019999,2]
[360541164,1746870256706,-500.0,0.00019999,2]
[360541165,1746870256730,-500.0,0.00019999,2]
[360541166,1746870256754,-335.33390768,0.00019999,2]
[360541167,1746870256786,-550.87844658,0.00019999,2]
[360541168,1746870256819,-550.87844658,0.00019999,2]
[360541169,1746870256852,-550.87844658,0.00019999,2]
[360541170,1746870256881,-550.87844658,0.00019999,2]
[360541171,1746870256911,-550.87844658,0.00019999,2]
[360541172,1746870256940,-550.87844658,0.00019999,2]
[360541173,1746870256968,-550.87844658,0.00019999,2]
[360541174,1746870256996,-550.87844658,0.00019999,2]
[360541175,1746870257023,-550.87844658,0.00019999,2]
[360541176,1746870257056,-550.87844658,0.00019999,2]
[360541177,1746870257087,-550.87844658,0.00019999,2]
[360541178,1746870257119,-550.87844658,0.00019999,2]
[360541179,1746870257155,-550.87844658,0.00019999,2]
[360541180,1746870257185,-550.87844658,0.00019999,2]
[360541181,1746870257217,-550.87844658,0.00019999,2]
[360541182,1746870257248,-550.87844658,0.00019999,2]
[360541183,1746870257280,-550.87844658,0.00019999,2]
[360541184,1746870257311,-550.87844658,0.00019999,2]
[360541185,1746870257342,-550.87844658,0.00019999,2]
[360541186,1746870257372,-550.87844658,0.00019999,2]
[360541187,1746870257402,-550.87844658,0.00019999,2]
[360541188,1746870257432,-550.87844658,0.00019999,2]
[360541189,1746870257462,-550.87844658,0.00019999,2]
[360541190,1746870257494,-550.87844658,0.00019999,2]
[360541191,1746870257525,-550.87844658,0.00019999,2]
[360541192,1746870257556,-550.87844658,0.00019999,2]
[360541193,1746870257586,-550.87844658,0.00019999,2]
[360541194,1746870257622,-550.87844658,0.00019999,2]
[360541195,1746870257653,-550.87844658,0.00019999,2]
[360541196,1746870257684,-550.87844658,0.00019999,2]
[360541197,1746870257715,-550.87844658,0.00019999,2]
[360541198,1746870257745,-550.87844658,0.00019999,2]
[360541199,1746870257775,-550.87844658,0.00019999,2]
[360541200,1746870257806,-550.87844658,0.00019999,2]
[360541201,1746870257835,-550.87844658,0.00019999,2]
[360541202,1746870257869,-550.87844658,0.00019999,2]
[360541203,1746870257897,-550.87844658,0.00019999,2]
[360541204,1746870257926,-550.87844658,0.00019999,2]
[360541205,1746870257955,-550.87844658,0.00019999,2]
[360541206,1746870257983,-550.87844658,0.00019999,2]
[360541207,1746870258012,-550.87844658,0.00019999,2]
[360541208,1746870258042,-550.87844658,0.00019999,2]
[360541209,1746870258265,-550.87844658,0.00019999,2]
[360541210,1746870258298,-550.87844658,0.00019999,2]
[360541211,1746870258329,-550.87844658,0.00019999,2]
[360541212,1746870258361,-550.87844658,0.00019999,2]
[360541213,1746870258397,-550.87844658,0.00019999,2]
[360541214,1746870258428,-550.87844658,0.00019999,2]
[360541215,1746870258459,-550.87844658,0.00019999,2]
[360541216,1746870258489,-542.27097085,0.00019999,2]
[360541217,1746870258519,-542.27097085,0.00019999,2]
[360541218,1746870258550,-542.27097085,0.00019999,2]
[360541219,1746870258579,-542.27097085,0.00019999,2]
[360541220,1746870258610,-542.27097085,0.00019999,2]
[360541221,1746870258642,-542.27097085,0.00019999,2]
[360541222,1746870258674,-542.27097085,0.00019999,2]
[360541223,1746870258705,-542.27097085,0.00019999,2]
[360541224,1746870258736,-542.27097085,0.00019999,2]
[360541225,1746870258765,-542.27097085,0.00019999,2]
[360541226,1746870258795,-542.27097085,0.00019999,2]
[360541227,1746870258825,-542.27097085,0.00019999,2]
[360541228,1746870258855,-542.27097085,0.00019999,2]
[360541229,1746870258885,-542.27097085,0.00019999,2]
[360541230,1746870258916,-542.27097085,0.00019999,2]
[360541231,1746870258947,-542.27097085,0.00019999,2]
[360541232,1746870258977,-542.27097085,0.00019999,2]
[360541233,1746870259006,-542.27097085,0.00019999,2]
[360541234,1746870259036,-542.27097085,0.00019999,2]
[360541235,1746870259068,-542.27097085,0.00019999,2]
[360541236,1746870259101,-542.27097085,0.00019999,2]
[360541237,1746870259131,-542.27097085,0.00019999,2]
[360541238,1746870259161,-542.27097085,0.00019999,2]
[360541239,1746870259192,-542.27097085,0.00019999,2]
[360541240,1746870259222,-542.27097085,0.00019999,2]
[360541241,1746870259252,-542.27097085,0.00019999,2]
[360541242,1746870259283,-542.27097085,0.00019999,2]
[360541243,1746870259312,-542.27097083,0.00019999,2]
[360541244,1746870259341,-542.27097083,0.00019999,2]
[360541245,1746870259375,-542.27097083,0.00019999,2]
[360541246,1746870259405,-542.27097083,0.00019999,2]
[360541247,1746870259437,-542.27097083,0.00019999,2]
[360541248,1746870259462,-61940.63813304,0.0002,2]
[360541249,1746870259487,-1400.0,0.0002,2]
[360541250,1746870259510,-799.0,0.0002,2]
[360541251,1746870259534,-4024.0,0.0002,2]
[360541252,1746870259557,-3326.297,0.0002,2]
[360541253,1746870259583,-1183819.9053996,0.0002,2]
[360541254,1746870268579,250.0,0.00017,2]
[360541255,1746870269666,300.0,0.00019,2]
[360541256,1746870446597,1000.0,0.00019319,2]
[360541257,1746870546531,636.87,0.00019154,2]
[360541258,1746870555847,183.34,0.00019132,2]
[360541262,1746870631838,-199.31543314,0.00019799,2]
[360541263,1746870631848,-196.64044,0.000198,23]